fUST/lending_fUST_20250908
["ID","MTS","AMOUNT","RATE_DAILY","PERIOD"]
[384292071,1757320232852,-5272.93,0.00013711,2]
[384292072,1757320232865,-480.0,0.00013711,2]
[384292073,1757320232877,-585.55,0.00013711,2]
[384292074,1757320232889,-480.0,0.00013713,2]
[384292075,1757320232900,-480.0,0.00013713,2]
[384292076,1757320232914,-480.0,0.00013713,2]
[384292077,1757320232926,-765.10264216,0.00013774,2]
[384292078,1757320232938,-500.0,0.00013873,2]
[384292079,1757320232949,-500.0,0.00013873,2]
[384292080,1757320232960,-500.0,0.00013873,2]
[384292081,1757320232971,-377.69915331,0.00013873,2]
[384292082,1757320232981,-500.0,0.00013873,2]
[384292083,1757320232992,-500.0,0.00013873,2]
[384292084,1757320233003,-500.0,0.00013873,2]
[384292085,1757320233014,-500.0,0.00013873,2]
[384292086,1757320233025,-500.0,0.00013873,2]
[384292087,1757320233039,-500.0,0.00013873,2]
[384292088,1757320233051,-500.0,0.00013873,2]
[384292089,1757320233063,-500.0,0.00013873,2]
[384292090,1757320233074,-500.0,0.00013873,2]
[384292091,1757320233086,-500.0,0.00013873,2]
[384292092,1757320233099,-500.0,0.00013873,2]
[384292093,1757320233111,-500.0,0.00013873,2]
[384292094,1757320233124,-500.0,0.00013873,2]
[384292095,1757320233135,-500.0,0.00013873,2]
[384292096,1757320233148,-500.0,0.00013873,2]
[384292097,1757320233159,-500.0,0.00013873,2]
[384292098,1757320233170,-500.0,0.00013873,2]
[384292099,1757320233181,-500.0,0.00013873,2]
[384292100,1757320233191,-500.0,0.00013873,2]
[384292101,1757320233202,-500.0,0.00013873,2]
[384292102,1757320233213,-500.0,0.00013873,2]
[384292103,1757320233225,-500.0,0.00013873,2]
[384292104,1757320233238,-500.0,0.00013873,2]
[384292105,1757320233251,-500.0,0.00013873,2]
[384292106,1757320233264,-500.0,0.00013873,2]
[384292107,1757320233275,-500.0,0.00013873,2]
[384292108,1757320233287,-500.0,0.00013873,2]
[384292109,1757320233299,-500.0,0.00013873,2]
[384292110,1757320233312,-500.0,0.00013873,2]
[384292111,1757320233327,-500.0,0.00013873,2]
[384292112,1757320233340,-500.0,0.00013873,2]
[384292113,1757320233357,-628.41436582,0.00013873,2]
[384292114,1757320233369,-500.0,0.00013873,2]
[384292115,1757320233380,-500.0,0.00013873,2]
[384292116,1757320233391,-400.70471355,0.00013873,2]
[384292117,1757320233403,-500.0,0.00013873,2]
[384292118,1757320233414,-500.0,0.00013873,2]
[384292119,1757320233426,-500.0,0.00013873,2]
[384292120,1757320233438,-300.0,0.00013873,2]
[384292121,1757320233450,-500.0,0.00013873,2]
[384292122,1757320233461,-235.30115507,0.00013873,2]
[384292123,1757320233474,-500.0,0.00013873,2]
[384292124,1757320233485,-500.0,0.00013873,2]
[384292125,1757320233496,-500.0,0.00013873,2]
[384292126,1757320233507,-500.0,0.00013873,2]
[384292127,1757320233518,-500.0,0.00013873,2]
[384292128,1757320233529,-500.0,0.00013873,2]
[384292129,1757320233541,-500.0,0.00013873,2]
[384292130,1757320233555,-500.0,0.00013873,2]
[384292131,1757320233567,-500.0,0.00013873,2]
[384292132,1757320233577,-500.0,0.00013873,2]
[384292133,1757320233589,-500.0,0.00013873,2]
[384292134,1757320233599,-500.0,0.00013873,2]
[384292135,1757320233610,-500.0,0.00013873,2]
[384292136,1757320233621,-500.0,0.00013873,2]
[384292137,1757320233631,-500.0,0.00013873,2]
[384292138,1757320233642,-500.0,0.00013873,2]
[384292139,1757320233653,-500.0,0.00013873,2]
[384292140,1757320233667,-500.0,0.00013873,2]
[384292141,1757320233678,-369.07843243,0.00013873,2]
[384292142,1757320233689,-500.0,0.00013873,2]
[384292143,1757320233700,-500.0,0.00013873,2]
[384292144,1757320233711,-500.0,0.00013873,2]
[384292145,1757320233722,-630.22874158,0.00013873,2]
[384292146,1757320233734,-500.0,0.00013873,2]
[384292147,1757320233745,-500.0,0.00013873,2]
[384292148,1757320233757,-500.0,0.00013873,2]
[384292149,1757320233768,-500.0,0.00013873,2]
[384292150,1757320233780,-500.0,0.00013873,2]
[384292151,1757320233791,-500.0,0.00013873,2]
[384292152,1757320233802,-500.0,0.00013873,2]
[384292153,1757320233813,-500.0,0.00013873,2]
[384292154,1757320233825,-500.0,0.00013873,2]
[384292155,1757320233836,-500.0,0.00013873,2]
[384292156,1757320233847,-500.0,0.00013873,2]
[384292157,1757320233858,-500.0,0.00013873,2]
[384292158,1757320233869,-500.0,0.00013873,2]
[384292159,1757320233881,-500.0,0.00013873,2]
[384292160,1757320233892,-564.68814863,0.00013873,2]
[384292161,1757320233903,-500.0,0.00013873,2]
[384292162,1757320233914,-500.0,0.00013873,2]
[384292163,1757320233926,-500.0,0.00013873,2]
[384292164,1757320233937,-500.0,0.00013873,2]
[384292165,1757320233948,-500.0,0.00013873,2]
[384292166,1757320233958,-500.0,0.00013873,2]
[384292167,1757320233970,-500.0,0.00013873,2]
[384292168,1757320233980,-500.0,0.00013873,2]
[384292169,1757320233992,-500.0,0.00013873,2]
[384292170,1757320234003,-258.06314233,0.0001388,2]
[384292171,1757320234013,-276.56055237,0.0001388,2]
[384292172,1757320234025,-7468.79580515,0.00013881,2]
[384292173,1757320234041,-14550.27374763,0.00013881,2]
[384292174,1757320234055,-33901.63791782,0.00013881,2]
[384292175,1757320234066,-151.0,0.00013889,2]
[384292176,1757320234077,-765.10264212,0.00013938,2]
[384292177,1757320234088,-480.0,0.00013979,2]
[384292178,1757320234099,-581.38,0.00013979,2]
[384292179,1757320234111,-480.0,0.00013982,2]
[384292180,1757320234268,-581.88385868,0.00013982,2]
[384292181,1757320234288,-1114.02,0.00013982,2]
[384292182,1757320234300,-728.85,0.00013982,2]
[384292183,1757320234311,-715.11,0.00013982,2]
[384292184,1757320234321,-480.0,0.00013982,2]
[384292185,1757320234331,-480.0,0.00013982,2]
[384292186,1757320234342,-480.0,0.00013982,2]
[384292187,1757320234354,-480.0,0.00013982,2]
[384292188,1757320234363,-480.0,0.00013982,2]
[384292189,1757320234372,-675.87,0.00013982,2]
[384292190,1757320234382,-480.0,0.00013982,2]
[384292191,1757320234392,-480.0,0.00013982,2]
[384292192,1757320234401,-480.0,0.00013982,2]
[384292193,1757320234412,-480.0,0.00013982,2]
[384292194,1757320234421,-480.0,0.00013982,2]
[384292195,1757320234432,-711.18,0.00013982,2]
[384292196,1757320234441,-480.0,0.00013982,2]
[384292197,1757320234451,-1277.02,0.00013982,2]
[384292198,1757320234459,-480.0,0.00013982,2]
[384292199,1757320234471,-478.99032299,0.00013982,2]
[384292200,1757320234483,-1.00967701,0.00013982,2]
[384292201,1757320234492,-480.0,0.00013982,2]
[384292202,1757320234502,-239.60591493,0.00013983,2]
[384292203,1757320234511,-480.0,0.00013983,2]
[384292204,1757320234521,-480.0,0.00013983,2]
[384292205,1757320234530,-10.98439806,0.00013983,2]
[384292206,1757320234542,-469.01560194,0.00013983,2]
[384292207,1757320234552,-358.46452498,0.00013983,2]
[384292208,1757320234562,-121.53547502,0.00013983,2]
[384292209,1757320234573,-480.0,0.00013983,2]
[384292210,1757320234582,-0.22821179,0.00013983,2]
[384292211,1757320234593,-479.77178821,0.00013983,2]
[384292212,1757320234603,-480.0,0.00013983,2]
[384292213,1757320234612,-480.0,0.00013983,2]
[384292214,1757320234622,-662.26,0.00013983,2]
[384292215,1757320234632,-480.0,0.00013983,2]
[384292216,1757320234641,-480.0,0.00013983,2]
[384292217,1757320234650,-480.0,0.00013983,2]
[384292218,1757320234659,-1096.24880995,0.00013983,2]
[384292224,1757320237944,-482.86119005,0.00013983,2]
[384292225,1757320237954,-458.01881035,0.00013983,2]
[384292226,1757320237965,-214.87118965,0.00013983,2]
[384292227,1757320237975,-2983.89,0.00013983,2]
[384292228,1757320237983,-480.0,0.00013983,2]
[384292229,1757320237993,-480.0,0.00013983,2]
[384292230,1757320238002,-1113.0,0.00013984,2]
[384292231,1757320238011,-480.0,0.00013984,2]
[384292232,1757320238021,-480.0,0.00013985,2]
[384292233,1757320238030,-480.0,0.00013985,2]
[384292234,1757320238039,-272.69,0.00013985,2]
[384292235,1757320238048,-517.93457634,0.00013985,2]
[384292236,1757320238057,-480.0,0.00013985,2]
[384292237,1757320238067,-480.0,0.00013985,2]
[384292238,1757320238076,-480.0,0.00013985,2]
[384292239,1757320238086,-1753.5,0.00013985,2]
[384292240,1757320238095,-5272.93,0.00013985,2]
[384292241,1757320238105,-480.0,0.00013985,2]
[384292242,1757320238114,-585.55,0.00013985,2]
[384292243,1757320238124,-17028.48271847,0.00013987,2]
[384292244,1757320238136,-34302.68466283,0.00013987,2]
[384292245,1757320238146,-480.0,0.00013987,2]
[384292246,1757320238156,-151.0,0.00013987,2]
[384292247,1757320238166,-151.0,0.00013987,2]
[384292248,1757320238176,-151.0,0.00013987,2]
[384292249,1757320238185,-300.0,0.00013988,2]
[384292250,1757320238195,-300.0,0.00013988,2]
[384292251,1757320238204,-300.0,0.00013988,2]
[384292252,1757320238214,-300.0,0.00013988,2]
[384292253,1757320238223,-300.0,0.00013988,2]
[384292254,1757320238232,-300.0,0.00013988,2]
[384292255,1757320238242,-300.0,0.00013988,2]
[384292256,1757320238251,-300.0,0.00013988,2]
[384292257,1757320238260,-300.0,0.00013988,2]
[384292258,1757320238270,-300.0,0.00013988,2]
[384292259,1757320238279,-300.0,0.00013988,2]
[384292260,1757320238290,-300.0,0.00013988,2]
[384292261,1757320238299,-300.0,0.00013988,2]
[384292262,1757320238309,-300.0,0.00013988,2]
[384292263,1757320238318,-300.0,0.00013988,2]
[384292264,1757320238328,-217.62647793,0.00014038,2]
[384292265,1757320238338,-160.0,0.00014038,2]
[384292266,1757320238351,-233.03190505,0.00014038,2]
[384292267,1757320238360,-846.71598105,0.00014038,2]
[384292268,1757320238370,-203.26219058,0.00014038,2]
[384292269,1757320238379,-23.18134714,0.00014103,2]
[384292290,1757320243187,-2411.14598408,0.00013985,2]
[384292295,1757320245913,-11678.68057813,0.00013845,2]
[384292297,1757320377364,-300.0,0.00013707,2]
[384292298,1757320377393,-1200.0,0.00013707,2]
[384292299,1757320377422,-480.0,0.00013708,2]
[384292300,1757320377451,-480.0,0.00013708,2]
[384292301,1757320377605,-668.11,0.00013708,2]
[384292302,1757320377635,-480.0,0.00013708,2]
[384292303,1757320377665,-1021.18,0.00013708,2]
[384292304,1757320377692,-134.36,0.00013708,2]
[384292305,1757320377845,-472.71,0.00013708,2]
[384292306,1757320377874,-655.51,0.00013708,2]
[384292307,1757320377904,-480.0,0.00013708,2]
[384292308,1757320377933,-750.73586684,0.00013708,2]
[384292309,1757320377961,-480.0,0.00013708,2]
[384292310,1757320377990,-480.0,0.00013708,2]
[384292311,1757320378018,-480.0,0.00013708,2]
[384292312,1757320378046,-480.0,0.00013708,2]
[384292313,1757320378076,-480.0,0.00013708,2]
[384292314,1757320378104,-38.40320259,0.00013708,2]
[384292315,1757320382186,-405.29186114,0.00013708,2]
[384292316,1757320382215,-480.0,0.00013708,2]
[384292317,1757320382246,-1447.52,0.00013708,2]
[384292318,1757320382274,-480.0,0.00013708,2]
[384292319,1757320382303,-1020.25,0.00013709,2]
[384292320,1757320382332,-726.50627772,0.00013709,2]
[384292321,1757320382478,-880.87372228,0.00013709,2]
[384292322,1757320382506,-485.12721085,0.00013709,2]
[384292323,1757320382534,-480.0,0.00013709,2]
[384292324,1757320382562,-480.0,0.00013709,2]
[384292325,1757320382596,-514.48813374,0.00013709,2]
[384292326,1757320387143,-300.0,0.00013708,2]
[384292327,1757320387176,-4319.03186626,0.00013709,2]
[384292328,1757320387205,-281.94626748,0.00013709,2]
[384292329,1757320387306,-198.05373252,0.00013709,2]
[384292330,1757320387337,-480.0,0.00013709,2]
[384292331,1757320387366,-557.16,0.00013711,2]
[384292332,1757320387396,-542.65138739,0.00013711,2]
[384292333,1757320387425,-480.0,0.00013711,2]
[384292334,1757320388685,651.91,0.00013708,2]
[384292335,1757320389227,480.0,0.00013708,2]
[384292336,1757320391218,619.55,0.00013708,2]
[384292337,1757320400710,616.82,0.00013708,2]
[384292338,1757320404282,770.96977419,0.00013679,2]
[384292339,1757320405867,536.75,0.00013709,2]
[384292340,1757320407010,480.0,0.00013711,2]
[384292341,1757320416235,480.0,0.00013708,2]
[384292342,1757320418395,848.27998599,0.00013708,2]
[384292343,1757320418418,1886.95001401,0.00013708,2]
[384292359,1757320427321,480.0,0.00013708,2]
[384292364,1757320428163,459.06158528,0.00013608,2]
[384292365,1757320428227,480.0,0.00013708,2]
[384292367,1757320435306,480.0,0.00013708,2]
[384292368,1757320438271,480.0,0.00013708,2]
[384292369,1757320438977,480.0,0.00013708,2]
[384292370,1757320440947,480.0,0.00013709,2]
[384292371,1757320446257,480.0,0.00013708,2]
[384292372,1757320447693,446.39006404,0.00013709,2]
[384292373,1757320452779,459.06158528,0.00013608,2]
[384292374,1757320454020,1170.6,0.00013708,2]
[384292375,1757320477279,459.06158528,0.00013608,2]
[384292376,1757320478863,480.0,0.00013708,2]
[384292377,1757320479785,533.94,0.00013709,2]
[384292378,1757320490538,480.0,0.00013708,2]
[384292379,1757320492721,264.94516611,0.00013708,2]
[384292380,1757320492745,1275.45483389,0.00013708,2]
[384292381,1757320494601,978.63,0.00013708,2]
[384292382,1757320495210,480.0,0.00013708,2]
[384292383,1757320507466,480.0,0.00013708,2]
[384292384,1757320507496,459.06158528,0.00013608,2]
[384292385,1757320509550,640.27,0.00013708,2]
[384292386,1757320513293,628.2,0.00013708,2]
[384292387,1757320519867,480.0,0.00013708,2]
[384292388,1757320528452,480.0,0.00013708,2]
[384292389,1757320531114,480.0,0.00013708,2]
[384292390,1757320533044,459.06158528,0.00013608,2]
[384292391,1757320540911,480.0,0.00013708,2]
[384292392,1757320541180,480.0,0.00013708,2]
[384292393,1757320552247,480.0,0.00013708,2]
[384292394,1757320558606,459.06158528,0.00013608,2]
[384292395,1757320559714,1260.27041027,0.00013708,2]
[384292396,1757320559741,3371.84958973,0.00013708,2]
[384292397,1757320573211,582.45,0.00013708,2]
[384292398,1757320576430,480.0,0.00013708,2]
[384292399,1757320578762,480.0,0.00013708,2]
[384292400,1757320584057,480.0,0.00013708,2]
[384292401,1757320584127,459.06158528,0.00013608,2]
[384292402,1757320584893,480.0,0.00013708,2]
[384292403,1757320593038,480.0,0.00013708,2]
[384292404,1757320597107,483.17355468,0.00013708,2]
[384292405,1757320606155,480.0,0.00013708,2]
[384292406,1757320609419,459.06158528,0.00013608,2]
[384292407,1757320609449,674.59855239,0.00013672,2]
[384292408,1757320609525,1089.81513264,0.00013403,2]
[384292409,1757320609549,277.32142057,0.00013403,2]
[384292410,1757320611695,514.39,0.00013708,2]
[384292411,1757320613285,398.772208,0.00013699,2]
[384292413,1757320620072,480.0,0.00013709,2]
[384292414,1757320626207,480.0,0.00013708,2]
[384292415,1757320635007,459.06158528,0.00013608,2]
[384292416,1757320636029,593.73,0.00013708,2]
[384292417,1757320639419,480.0,0.00013708,2]
[384292418,1757320639854,554.07751191,0.00013711,2]
[384292419,1757320640239,480.0,0.00013708,2]
[384292420,1757320642934,480.0,0.00013708,2]
[384292421,1757320653638,1387.21,0.00013708,2]
[384292422,1757320661089,459.06158528,0.00013608,2]
[384292423,1757320665624,2621.26,0.00013708,2]
[384292424,1757320671557,335.12568896,0.00013708,2]
[384292425,1757320671580,144.87431104,0.00013708,2]
[384292426,1757320673293,591.12,0.00013708,2]
[384292427,1757320683549,234.85985815,0.00013708,2]
[384292428,1757320686574,459.06158528,0.00013608,2]
[384292429,1757320688193,480.0,0.00013708,2]
[384292430,1757320690378,511.69,0.00013708,2]
[384292431,1757320690941,363.34559256,0.00013708,2]
[384292432,1757320694421,171.31108044,0.00013645,2]
[384292433,1757320703312,480.0,0.00013708,2]
[384292434,1757320712715,480.0,0.00013708,2]
[384292435,1757320713119,459.06158528,0.00013608,2]
[384292436,1757320727107,480.0,0.00013708,2]
[384292438,1757320732560,459.06158528,0.00013687,2]
[384292439,1757320738838,459.06158527,0.00013598,2]
[384292441,1757320744099,480.0,0.00013708,2]
[384292442,1757320753505,1579.8,0.00013708,2]
[384292444,1757320764180,459.06158527,0.00013598,2]
[384292446,1757320769863,599.43,0.00013708,2]
[384292447,1757320774720,480.0,0.00013708,2]
[384292448,1757320776385,628.27123143,0.00013708,2]
[384292449,1757320776419,329.46876857,0.00013708,2]
[384292450,1757320790158,459.06158527,0.00013598,2]
[384292451,1757320799195,480.0,0.00013708,2]
[384292452,1757320809153,408.8054938,0.00013708,2]
[384292453,1757320815945,590.27373335,0.00013672,2]
[384292454,1757320816171,459.06158527,0.00013598,2]
[384292455,1757320821343,480.0,0.00013708,2]
[384292456,1757320823490,4815.5,0.00013708,2]
[384292457,1757320827249,480.0,0.00013708,2]
[384292459,1757320840172,480.0,0.00013708,2]
[384292460,1757320842101,459.06158527,0.00013598,2]
[384292461,1757320846745,558.77724847,0.00013708,2]
[384292462,1757320846769,880.03275153,0.00013708,2]
[384292463,1757320852107,480.0,0.00013708,2]
[384292464,1757320867903,616.26,0.00013708,2]
[384292465,1757320868314,459.06158527,0.00013598,2]
[384292466,1757320872069,529.88,0.00013708,2]
[384292467,1757320889402,480.0,0.00013708,2]
[384292468,1757320893783,459.06158527,0.00013598,2]
[384292469,1757320904942,480.0,0.00013708,2]
[384292470,1757320908901,480.0,0.00013708,2]
[384292471,1757320918928,325.27805406,0.00013709,2]
[384292472,1757320920015,480.0,0.00013708,2]
[384292473,1757320920483,459.06158527,0.00013598,2]
[384292474,1757320932778,480.0,0.00013708,2]
[384292475,1757320933104,2512.05,0.00013708,2]
[384292476,1757320946702,459.06158527,0.00013598,2]
[384292477,1757320948375,490.37,0.00013708,2]
[384292478,1757320950107,917.83,0.00013708,2]
[384292479,1757321230141,-480.0,0.00013435,2]
[384292480,1757321230162,-367.24926824,0.00013672,2]
[384292481,1757321230183,-367.24926821,0.00013676,2]
[384292482,1757321230203,-367.24926821,0.0001368,2]
[384292483,1757321230224,-300.0,0.00013682,2]
[384292484,1757321230247,-300.0,0.00013683,2]
[384292485,1757321230267,-300.0,0.00013683,2]
[384292486,1757321230287,-300.0,0.00013683,2]
[384292487,1757321230307,-1200.0,0.00013683,2]
[384292488,1757321230326,-300.0,0.00013683,2]
[384292489,1757321230346,-367.24926821,0.00013683,2]
[384292490,1757321230368,-15482.44770999,0.00013683,2]
[384292491,1757321230388,-367.24926821,0.00013687,2]
[384292492,1757321230408,-247.85937222,0.00013708,2]
[384292493,1757321230428,-480.0,0.00013708,2]
[384292494,1757321230449,-1513.97,0.00013708,2]
[384292495,1757321230469,-480.0,0.00013708,2]
[384292496,1757321230490,-480.0,0.00013708,2]
[384292497,1757321230509,-480.0,0.00013708,2]
[384292498,1757321230529,-480.0,0.00013708,2]
[384292499,1757321230550,-4614.85,0.00013708,2]
[384292500,1757321230571,-480.0,0.00013708,2]
[384292501,1757321230591,-480.0,0.00013708,2]
[384292502,1757321230611,-480.0,0.00013708,2]
[384292503,1757321230633,-507.8,0.00013708,2]
[384292504,1757321230654,-480.0,0.00013708,2]
[384292505,1757321230673,-480.0,0.00013708,2]
[384292506,1757321230692,-282.89245928,0.00013709,2]
[384292507,1757321230713,-483.92103037,0.00013735,2]
[384292508,1757321230731,-480.0,0.00013735,2]
[384292509,1757321230749,-480.0,0.00013735,2]
[384292510,1757321230767,-480.0,0.00013735,2]
[384292511,1757321230786,-480.0,0.00013735,2]
[384292512,1757321230806,-447.0,0.00013769,2]
[384292513,1757321230966,-480.0,0.0001377,2]
[384292514,1757321230990,-480.0,0.0001377,2]
[384292515,1757321231011,-678.44,0.0001377,2]
[384292516,1757321231035,-480.0,0.0001377,2]
[384292517,1757321231055,-480.0,0.0001377,2]
[384292518,1757321231077,-1121.82,0.0001377,2]
[384292519,1757321231098,-391.93216734,0.0001377,2]
[384292520,1757321231118,-937.86,0.0001377,2]
[384292521,1757321231140,-500.0,0.0001377,2]
[384292522,1757321231161,-292.04604065,0.0001377,2]
[384292523,1757321231182,-500.0,0.0001377,2]
[384292524,1757321231203,-488.96719039,0.0001377,2]
[384292525,1757321231225,-518.59495366,0.0001377,2]
[384292579,1757321432370,-281.95768232,0.00013472,2]
[384292694,1757321438146,-500.0,0.00013699,2]
[384292696,1757321438156,-300.0,0.00013699,2]
[384292698,1757321438165,-12623.10927955,0.000137,2]
[384292700,1757321438177,-480.0,0.00013707,2]
[384292702,1757321438186,-1075.08,0.00013707,2]
[384292704,1757321438196,-480.0,0.00013735,2]
[384292705,1757321438206,-480.0,0.00013769,2]
[384292706,1757321438215,-650.17,0.00013769,2]
[384292708,1757321438225,-480.0,0.00013769,2]
[384292709,1757321438235,-644.34,0.0001377,2]
[384292710,1757321438244,-613.59,0.0001377,2]
[384292711,1757321438254,-480.0,0.0001377,2]
[384292712,1757321438263,-480.0,0.0001377,2]
[384292713,1757321438272,-235.74371607,0.0001377,2]
[384292714,1757321438282,-480.0,0.0001377,2]
[384292715,1757321438291,-480.0,0.0001377,2]
[384292716,1757321438301,-480.0,0.0001377,2]
[384292717,1757321438312,-480.0,0.0001377,2]
[384292718,1757321438322,-667.92,0.0001377,2]
[384292719,1757321438332,-480.0,0.0001377,2]
[384292720,1757321438341,-480.0,0.0001377,2]
[384292721,1757321438351,-480.0,0.0001377,2]
[384292722,1757321438360,-480.0,0.0001377,2]
[384292723,1757321438369,-480.0,0.0001377,2]
[384292724,1757321438378,-480.0,0.0001377,2]
[384292725,1757321438389,-480.0,0.0001377,2]
[384292726,1757321438398,-480.0,0.00013771,2]
[384292727,1757321438407,-480.0,0.00013771,2]
[384292728,1757321438417,-480.0,0.00013771,2]
[384292729,1757321438427,-480.0,0.00013771,2]
[384292730,1757321438436,-480.0,0.00013771,2]
[384292731,1757321438445,-480.0,0.00013771,2]
[384292732,1757321438454,-480.0,0.00013771,2]
[384292733,1757321438464,-430.8261463,0.00013771,2]
[384292734,1757321438474,-480.0,0.00013771,2]
[384292735,1757321438483,-1450.89,0.00013771,2]
[384292736,1757321438492,-879.59,0.00013771,2]
[384292737,1757321438503,-480.0,0.00013771,2]
[384292738,1757321438512,-574.46,0.00013771,2]
[384292739,1757321438522,-480.0,0.00013771,2]
[384292740,1757321438531,-480.0,0.00013771,2]
[384292741,1757321438541,-480.0,0.00013771,2]
[384292742,1757321438550,-4422.57,0.00013771,2]
[384292743,1757321438563,-480.0,0.00013771,2]
[384292744,1757321438573,-480.0,0.00013771,2]
[384292745,1757321438583,-480.0,0.00013771,2]
[384292746,1757321438593,-1378.86,0.00013771,2]
[384292747,1757321438602,-486.64,0.00013771,2]
[384292748,1757321438612,-590.58,0.00013771,2]
[384292749,1757321438621,-480.0,0.00013771,2]
[384292750,1757321438630,-2407.38,0.00013771,2]
[384292751,1757321438640,-480.0,0.00013771,2]
[384292752,1757321438649,-480.0,0.00013771,2]
[384292753,1757321438658,-193.59238666,0.00013772,2]
[384292754,1757321438668,-180.64419963,0.00013772,2]
[384292755,1757321438677,-500.0,0.00013772,2]
[384292756,1757321438686,-500.0,0.00013772,2]
[384292757,1757321438696,-156.46881486,0.00013772,2]
[384292758,1757321438705,-500.0,0.00013772,2]
[384292759,1757321438714,-292.24763795,0.00013772,2]
[384292760,1757321438724,-500.0,0.00013772,2]
[384292761,1757321438733,-200.0,0.00013772,2]
[384292762,1757321438742,-500.0,0.00013772,2]
[384292763,1757321438751,-500.0,0.00013772,2]
[384292764,1757321438760,-500.0,0.00013772,2]
[384292765,1757321438770,-500.0,0.00013772,2]
[384292766,1757321438779,-500.0,0.00013772,2]
[384292767,1757321438789,-500.0,0.00013772,2]
[384292768,1757321438798,-500.0,0.00013772,2]
[384292769,1757321438808,-500.0,0.00013772,2]
[384292770,1757321438817,-500.0,0.00013772,2]
[384292771,1757321438827,-500.0,0.00013772,2]
[384292772,1757321438836,-295.00797442,0.00013772,2]
[384292773,1757321438846,-500.0,0.00013772,2]
[384292774,1757321438855,-500.0,0.00013772,2]
[384292775,1757321438864,-500.0,0.00013772,2]
[384292776,1757321438874,-500.0,0.00013772,2]
[384292777,1757321438883,-500.0,0.00013772,2]
[384292778,1757321438893,-500.0,0.00013772,2]
[384292779,1757321438902,-500.0,0.00013772,2]
[384292780,1757321438911,-500.0,0.00013772,2]
[384292781,1757321438920,-500.0,0.00013772,2]
[384292782,1757321438930,-500.0,0.00013772,2]
[384292783,1757321438939,-500.0,0.00013772,2]
[384292784,1757321438949,-500.0,0.00013772,2]
[384292785,1757321438958,-500.0,0.00013772,2]
[384292786,1757321438969,-500.0,0.00013772,2]
[384292787,1757321438978,-500.0,0.00013772,2]
[384292788,1757321438987,-500.0,0.00013772,2]
[384292789,1757321438996,-500.0,0.00013772,2]
[384292790,1757321439007,-500.0,0.00013772,2]
[384292791,1757321439017,-500.0,0.00013772,2]
[384292792,1757321439026,-500.0,0.00013772,2]
[384292793,1757321439036,-249484.22360889,0.00013773,2]
[384292794,1757321439046,-1650.9851314,0.00013787,2]
[384292795,1757321439055,-11005.5545045,0.00013787,2]
[384292796,1757321439065,-26948.0873496,0.00013969,2]
[384292797,1757321439075,-480.0,0.00013981,2]
[384292798,1757321439084,-1075.08,0.00013981,2]
[384292799,1757321439093,-480.0,0.00013982,2]